Workbook

Sheet 怪物规划
A1: index | B1: name | C1: monsterId | D1: race | E1: family | F1: prof | G1: status | H1: level | I1: hurtGrade | J1: survialGrade | K1: attackRange | L1: abilityPosition | M1: ability1 | N1: ability2 | O1: ability3 | P1: ability4 | Q1: tag1 | R1: tag2 | S1: tag3 | T1: tag4 | U1: weight | V1: fightPower
A2: int_key | B2: string | C2: int | D2: string | E2: string | F2: string | G2: string | H2: int | I2: string | J2: string | K2: string | L2: string | M2: string | N2: string | O2: string | P2: string | Q2: string | R2: string | S2: string | T2: string | U2: int | V2: int
A3: c | B3: c | C3: c | D3: c | E3: c | F3: c | G3: c | H3: c | I3: c | J3: c | K3: c | L3: c | M3: c | N3: c | O3: c | P3: c | Q3: c | R3: c | S3: c | T3: c | U3: c | V3: c
A4: 编号 | B4: 名称 | C4: ID | D4: 种族 | E4: 氏族 | F4: 职业 | G4: 身份 | H4: 等级 | I4: 输出评级 | J4: 生存评级 | K4: 射程 | L4: 定位 | M4: 能力1 | N4: 能力2 | O4: 能力3 | P4: 能力4 | Q4: 标签1 | R4: 标签2 | S4: 标签3 | T4: 标签4 | U4: 权重 | V4: 战力
A5: 1 | B5: 小蝙蝠 | C5: 101030 | D5: 妖类 | E5: 蝙蝠族 | F5: 能量 | G5: 仆从 | H5: 3 | I5: F | J5: F | K5: 远程 | L5: 单体输出 | M5: 无 | N5: 无 | O5: 无 | P5: 无 | Q5: 兽类 | R5: 飞行 | S5: 无 | T5: 无 | U5: 100 | V5: =VLOOKUP(H5,[1]怪物强度量化!$B$33:$K$52,IF(怪物规划!G5="仆从",1,IF(怪物规划!G5="普通",2,IF(怪物规划!G5="精英",3,IF(怪物规划!G5="首领",4,0))))+5,FALSE) -> 520
A6: 2 | B6: 中蝙蝠 | C6: 101031 | D6: 妖类 | E6: 蝙蝠族 | F6: 能量 | G6: 普通 | H6: 11 | I6: E | J6: D | K6: 远程 | L6: 单体输出 | M6: 灵魂链接 | N6: 无 | O6: 无 | P6: 无 | Q6: 兽类 | R6: 飞行 | S6: 无 | T6: 无 | U6: 100 | V6: =VLOOKUP(H6,[1]怪物强度量化!$B$33:$K$52,IF(怪物规划!G6="仆从",1,IF(怪物规划!G6="普通",2,IF(怪物规划!G6="精英",3,IF(怪物规划!G6="首领",4,0))))+5,FALSE) -> 3267
A7: 3 | B7: 大蝙蝠 | C7: 101032 | D7: 妖类 | E7: 蝙蝠族 | F7: 能量 | G7: 首领 | H7: 15 | I7: B | J7: B | K7: 远程 | L7: 单体输出 | M7: 灵魂链接 | N7: 召唤 | O7: 无 | P7: 无 | Q7: 兽类 | R7: 飞行 | S7: 无 | T7: 无 | U7: 100 | V7: =VLOOKUP(H7,[1]怪物强度量化!$B$33:$K$52,IF(怪物规划!G7="仆从",1,IF(怪物规划!G7="普通",2,IF(怪物规划!G7="精英",3,IF(怪物规划!G7="首领",4,0))))+5,FALSE) -> 14775
A8: 6 | B8: 小野狼 | C8: 101010 | D8: 妖类 | E8: 狼族 | F8: 先锋 | G8: 仆从 | H8: 3 | I8: F | J8: F | K8: 近程 | L8: 单体输出 | M8: 无 | N8: 无 | O8: 无 | P8: 无 | Q8: 兽类 | R8: 无 | S8: 无 | T8: 无 | U8: 100 | V8: =VLOOKUP(H8,[1]怪物强度量化!$B$33:$K$52,IF(怪物规划!G8="仆从",1,IF(怪物规划!G8="普通",2,IF(怪物规划!G8="精英",3,IF(怪物规划!G8="首领",4,0))))+5,FALSE) -> 520
A9: 7 | B9: 中野狼 | C9: 101011 | D9: 妖类 | E9: 狼族 | F9: 先锋 | G9: 普通 | H9: 11 | I9: C | J9: D | K9: 近程 | L9: 单体输出 | M9: 加攻光环 | N9: 无 | O9: 无 | P9: 无 | Q9: 兽类 | R9: 无 | S9: 无 | T9: 无 | U9: 100 | V9: =VLOOKUP(H9,[1]怪物强度量化!$B$33:$K$52,IF(怪物规划!G9="仆从",1,IF(怪物规划!G9="普通",2,IF(怪物规划!G9="精英",3,IF(怪物规划!G9="首领",4,0))))+5,FALSE) -> 3267
A10: 8 | B10: 大野狼 | C10: 101012 | D10: 妖类 | E10: 狼族 | F10: 先锋 | G10: 首领 | H10: 14 | I10: A | J10: B | K10: 近程 | L10: 单体输出 | M10: 加攻光环 | N10: 召唤 | O10: 无 | P10: 无 | Q10: 兽类 | R10: 无 | S10: 无 | T10: 无 | U10: 100 | V10: =VLOOKUP(H10,[1]怪物强度量化!$B$33:$K$52,IF(怪物规划!G10="仆从",1,IF(怪物规划!G10="普通",2,IF(怪物规划!G10="精英",3,IF(怪物规划!G10="首领",4,0))))+5,FALSE) -> 12217
A11: 9 | B11: 小蜘蛛 | C11: 101020 | D11: 妖类 | E11: 蜘蛛族 | F11: 先锋 | G11: 仆从 | H11: 2 | I11: F | J11: F | K11: 近程 | L11: 单体输出 | M11: 无 | N11: 无 | O11: 无 | P11: 无 | Q11: 兽类 | R11: 无 | S11: 无 | T11: 无 | U11: 100 | V11: =VLOOKUP(H11,[1]怪物强度量化!$B$33:$K$52,IF(怪物规划!G11="仆从",1,IF(怪物规划!G11="普通",2,IF(怪物规划!G11="精英",3,IF(怪物规划!G11="首领",4,0))))+5,FALSE) -> 429
A12: 10 | B12: 中蜘蛛 | C12: 101021 | D12: 妖类 | E12: 蜘蛛族 | F12: 先锋 | G12: 普通 | H12: 11 | I12: E | J12: E | K12: 近程 | L12: 单体输出 | M12: 死亡召唤 | N12: 无 | O12: 无 | P12: 无 | Q12: 兽类 | R12: 无 | S12: 无 | T12: 无 | U12: 100 | V12: =VLOOKUP(H12,[1]怪物强度量化!$B$33:$K$52,IF(怪物规划!G12="仆从",1,IF(怪物规划!G12="普通",2,IF(怪物规划!G12="精英",3,IF(怪物规划!G12="首领",4,0))))+5,FALSE) -> 3267
A13: 11 | B13: 大蜘蛛 | C13: 101022 | D13: 妖类 | E13: 蜘蛛族 | F13: 先锋 | G13: 精英 | H13: 16 | I13: B | J13: B | K13: 近程 | L13: 单体输出 | M13: 死亡召唤 | N13: 无 | O13: 无 | P13: 无 | Q13: 兽类 | R13: 无 | S13: 无 | T13: 无 | U13: 100 | V13: =VLOOKUP(H13,[1]怪物强度量化!$B$33:$K$52,IF(怪物规划!G13="仆从",1,IF(怪物规划!G13="普通",2,IF(怪物规划!G13="精英",3,IF(怪物规划!G13="首领",4,0))))+5,FALSE) -> 11605
A14: 12 | B14: 小矛兵 | C14: 102030 | D14: 妖类 | E14: 恶鬼鼠族 | F14: 射手 | G14: 普通 | H14: 8 | I14: E | J14: E | K14: 远程 | L14: 单体输出 | M14: 加速 | N14: 无 | O14: 无 | P14: 无 | Q14: 兽类 | R14: 无 | S14: 无 | T14: 无 | U14: 100 | V14: =VLOOKUP(H14,[1]怪物强度量化!$B$33:$K$52,IF(怪物规划!G14="仆从",1,IF(怪物规划!G14="普通",2,IF(怪物规划!G14="精英",3,IF(怪物规划!G14="首领",4,0))))+5,FALSE) -> 1842
A15: 13 | B15: 中矛兵 | C15: 102031 | D15: 妖类 | E15: 恶鬼鼠族 | F15: 射手 | G15: 精英 | H15: 10 | I15: B | J15: D | K15: 远程 | L15: 单体输出 | M15: 加速 | N15: 中毒 | O15: 无 | P15: 无 | Q15: 兽类 | R15: 无 | S15: 无 | T15: 无 | U15: 100 | V15: =VLOOKUP(H15,[1]怪物强度量化!$B$33:$K$52,IF(怪物规划!G15="仆从",1,IF(怪物规划!G15="普通",2,IF(怪物规划!G15="精英",3,IF(怪物规划!G15="首领",4,0))))+5,FALSE) -> 3700
A16: 14 | B16: 大投矛手 | C16: 102032 | D16: 妖类 | E16: 恶鬼鼠族 | F16: 射手 | G16: 首领 | H16: 12 | I16: A+ | J16: B | K16: 远程 | L16: 直线输出 | M16: 加速 | N16: 中毒 | O16: 穿透 | P16: 无 | Q16: 兽类 | R16: 无 | S16: 无 | T16: 无 | U16: 100 | V16: =VLOOKUP(H16,[1]怪物强度量化!$B$33:$K$52,IF(怪物规划!G16="仆从",1,IF(怪物规划!G16="普通",2,IF(怪物规划!G16="精英",3,IF(怪物规划!G16="首领",4,0))))+5,FALSE) -> 8345
A17: 15 | B17: 小石头人 | C17: 102010 | D17: 神族 | E17: 石头傀儡 | F17: 坦克 | G17: 精英 | H17: 11 | I17: C | J17: A | K17: 近程 | L17: 肉盾 | M17: 圆形aoe | N17: 无 | O17: 无 | P17: 无 | Q17: 神 | R17: 无 | S17: 无 | T17: 无 | U17: 100 | V17: =VLOOKUP(H17,[1]怪物强度量化!$B$33:$K$52,IF(怪物规划!G17="仆从",1,IF(怪物规划!G17="普通",2,IF(怪物规划!G17="精英",3,IF(怪物规划!G17="首领",4,0))))+5,FALSE) -> 4477
A18: 16 | B18: 寒晶傀儡 | C18: 102013 | D18: 神族 | E18: 石头傀儡 | F18: 坦克 | G18: 精英 | H18: 11 | I18: C | J18: A | K18: 近程 | L18: 肉盾 | M18: 圆形aoe | N18: 降攻击者攻速 | O18: 无 | P18: 无 | Q18: 神 | R18: 无 | S18: 无 | T18: 无 | U18: 100 | V18: =VLOOKUP(H18,[1]怪物强度量化!$B$33:$K$52,IF(怪物规划!G18="仆从",1,IF(怪物规划!G18="普通",2,IF(怪物规划!G18="精英",3,IF(怪物规划!G18="首领",4,0))))+5,FALSE) -> 4477
A19: 22 | B19: 弱点机 | C19: 103008 | D19: 人族 | E19: 机械 | F19: 能量 | G19: 普通 | H19: 5 | I19: C | J19: E | K19: 远程 | L19: 单体输出 | M19: 易伤 | N19: 无 | O19: 无 | P19: 无 | Q19: 机械 | R19: 无 | S19: 无 | T19: 无 | U19: 100 | V19: =VLOOKUP(H19,[1]怪物强度量化!$B$33:$K$52,IF(怪物规划!G19="仆从",1,IF(怪物规划!G19="普通",2,IF(怪物规划!G19="精英",3,IF(怪物规划!G19="首领",4,0))))+5,FALSE) -> 1035
A20: 23 | B20: 自爆机 | C20: 103007 | D20: 人族 | E20: 机械 | F20: 能量 | G20: 普通 | H20: 6 | I20: E | J20: F | K20: 远程 | L20: 单体输出 | M20: 半血自爆 | N20: 无 | O20: 无 | P20: 无 | Q20: 机械 | R20: 无 | S20: 无 | T20: 无 | U20: 100 | V20: =VLOOKUP(H20,[1]怪物强度量化!$B$33:$K$52,IF(怪物规划!G20="仆从",1,IF(怪物规划!G20="普通",2,IF(怪物规划!G20="精英",3,IF(怪物规划!G20="首领",4,0))))+5,FALSE) -> 1252
A21: 24 | B21: 啄木鸟 | C21: 103009 | D21: 人族 | E21: 机械 | F21: 能量 | G21: 普通 | H21: 8 | I21: C | J21: E | K21: 远程 | L21: 扇形输出 | M21: 扇形aoe | N21: 无 | O21: 无 | P21: 无 | Q21: 机械 | R21: 无 | S21: 无 | T21: 无 | U21: 100 | V21: =VLOOKUP(H21,[1]怪物强度量化!$B$33:$K$52,IF(怪物规划!G21="仆从",1,IF(怪物规划!G21="普通",2,IF(怪物规划!G21="精英",3,IF(怪物规划!G21="首领",4,0))))+5,FALSE) -> 1842
A22: 25 | B22: 维修机 | C22: 103012 | D22: 人族 | E22: 机械 | F22: 辅助 | G22: 普通 | H22: 8 | I22: F | J22: E | K22: 远程 | L22: 单体治疗 | M22: 单体加血 | N22: 无 | O22: 无 | P22: 无 | Q22: 机械 | R22: 无 | S22: 无 | T22: 无 | U22: 100 | V22: =VLOOKUP(H22,[1]怪物强度量化!$B$33:$K$52,IF(怪物规划!G22="仆从",1,IF(怪物规划!G22="普通",2,IF(怪物规划!G22="精英",3,IF(怪物规划!G22="首领",4,0))))+5,FALSE) -> 1842
A23: 26 | B23: 神枪手 | C23: 103011 | D23: 人族 | E23: 人族 | F23: 射手 | G23: 普通 | H23: 7 | I23: C | J23: E | K23: 远程 | L23: 单体输出 | M23: 狙击后排 | N23: 无 | O23: 无 | P23: 无 | Q23: 人型生物 | R23: 无 | S23: 无 | T23: 无 | U23: 100 | V23: =VLOOKUP(H23,[1]怪物强度量化!$B$33:$K$52,IF(怪物规划!G23="仆从",1,IF(怪物规划!G23="普通",2,IF(怪物规划!G23="精英",3,IF(怪物规划!G23="首领",4,0))))+5,FALSE) -> 1519
A24: 27 | B24: 枪盾兵 | C24: 103006 | D24: 人族 | E24: 人族 | F24: 坦克 | G24: 普通 | H24: 10 | I24: E | J24: C | K24: 近程 | L24: 肉盾 | M24: 举盾减伤 | N24: 无 | O24: 无 | P24: 无 | Q24: 人型生物 | R24: 无 | S24: 无 | T24: 无 | U24: 100 | V24: =VLOOKUP(H24,[1]怪物强度量化!$B$33:$K$52,IF(怪物规划!G24="仆从",1,IF(怪物规划!G24="普通",2,IF(怪物规划!G24="精英",3,IF(怪物规划!G24="首领",4,0))))+5,FALSE) -> 2700
A25: 28 | B25: 枪骑兵 | C25: 103010 | D25: 人族 | E25: 人族 | F25: 先锋 | G25: 普通 | H25: 9 | I25: D | J25: C | K25: 近程 | L25: 半肉半C | M25: 扇形击倒 | N25: 无 | O25: 无 | P25: 无 | Q25: 人型生物 | R25: 无 | S25: 无 | T25: 无 | U25: 100 | V25: =VLOOKUP(H25,[1]怪物强度量化!$B$33:$K$52,IF(怪物规划!G25="仆从",1,IF(怪物规划!G25="普通",2,IF(怪物规划!G25="精英",3,IF(怪物规划!G25="首领",4,0))))+5,FALSE) -> 2231
A26: 29 | B26: 饿鬼鼠 | C26: 103002 | D26: 妖族 | E26: 妖族 | F26: 坦克 | G26: 普通 | H26: 13 | R26: 无 | S26: 无 | T26: 无 | U26: 100 | V26: 4783
A27: 30 | B27: 犀牛勇士英雄 | C27: 132010 | D27: 妖族 | E27: 妖族 | F27: 先锋 | G27: 精英 | H27: 15 | R27: 无 | S27: 无 | T27: 无 | U27: 100 | V27: 9591
A28: 31 | B28: 斗武神(减技能) | C28: 103014 | D28: 人族 | E28: 人族 | F28: 先锋 | G28: 精英 | H28: 10 | R28: 无 | S28: 无 | T28: 无 | U28: 100 | V28: 3700
A29: 32 | B29: 重炮蛛(减技能) | C29: 103013 | D29: 人族 | E29: 人族 | F29: 射手 | G29: 精英 | H29: 10 | R29: 无 | S29: 无 | T29: 无 | U29: 100 | V29: 3700
A30: 33 | B30: 恶鬼鼠(强化) | C30: 131010 | D30: 妖族 | E30: 妖族 | F30: 坦克 | G30: 精英 | H30: 10 | R30: 无 | S30: 无 | T30: 无 | U30: 100 | V30: 3700
A31: 34 | B31: 蜘蛛(强化) | C31: 103005 | D31: 妖族 | E31: 妖族 | F31: 射手 | G31: 精英 | H31: 14 | R31: 无 | S31: 无 | T31: 无 | U31: 100 | V31: 7930
A32: 35 | B32: 不灭金刚(强化) | C32: 103001 | D32: 神族 | E32: 神族 | F32: 坦克 | G32: 精英 | H32: 15 | R32: 无 | S32: 无 | T32: 无 | U32: 100 | V32: 9591
A33: 36 | B33: 蝙蝠(强化) | C33: 103003 | D33: 妖族 | E33: 妖族 | F33: 射手 | G33: 精英 | H33: 14 | R33: 无 | S33: 无 | T33: 无 | U33: 100 | V33: 7930
A34: 38 | B34: 犀牛勇士(强化) | C34: 103004 | D34: 妖族 | E34: 妖族 | F34: 先锋 | G34: 精英 | H34: 15 | R34: 无 | S34: 无 | T34: 无 | U34: 100 | V34: 9591
A35: 39 | B35: 枪骑士英雄 | C35: 112020 | D35: 人族 | E35: 人族 | F35: 先锋 | G35: 精英 | H35: 11 | R35: 无 | S35: 无 | T35: 无 | U35: 100 | V35: 4477
A36: 40 | B36: 无人机英雄 | C36: 111020 | D36: 人族 | E36: 人族 | F36: 能量 | G36: 精英 | H36: 10 | R36: 无 | S36: 无 | T36: 无 | U36: 100 | V36: 3700
A37: 41 | B37: 侦察机英雄 | C37: 111030 | D37: 人族 | E37: 人族 | F37: 辅助 | G37: 精英 | H37: 11 | R37: 无 | S37: 无 | T37: 无 | U37: 100 | V37: 4477
A38: 42 | B38: 啄木鸟英雄 | C38: 112010 | D38: 人族 | E38: 人族 | F38: 射手 | G38: 精英 | H38: 9 | R38: 无 | S38: 无 | T38: 无 | U38: 100 | V38: 3057
A39: 43 | B39: 冲锋骑 | C39: 102033 | D39: 人族 | E39: 人族 | F39: 先锋 | G39: 普通 | H39: 9 | R39: 无 | S39: 无 | T39: 无 | U39: 100 | V39: 2231
A40: 44 | B40: 小蜉蝣 | C40: 102034 | D40: 神族 | E40: 神族 | F40: 能量 | G40: 精英 | H40: 9 | R40: 无 | S40: 无 | T40: 无 | U40: 100 | V40: 3057
A41: 45 | B41: 中蜉蝣 | C41: 102035 | D41: 神族 | E41: 神族 | F41: 射手 | G41: 普通 | H41: 12 | R41: 无 | S41: 无 | T41: 无 | U41: 100 | V41: 3953
A42: 46 | B42: 黑天师 | C42: 102037 | D42: 神族 | E42: 神族 | F42: 能量 | G42: 普通 | H42: 11 | R42: 无 | S42: 无 | T42: 无 | U42: 100 | V42: 3267
A43: 47 | B43: 红天师 | C43: 102038 | D43: 神族 | E43: 神族 | F43: 能量 | G43: 精英 | H43: 12 | R43: 无 | S43: 无 | T43: 无 | U43: 100 | V43: 5417
A44: 48 | B44: 巨鲸 | C44: 102039 | D44: 神族 | E44: 神族 | F44: 射手 | G44: 普通 | H44: 14 | R44: 无 | S44: 无 | T44: 无 | U44: 100 | V44: 5787
A45: 49 | B45: 斧卫士英雄 | C45: 111010 | D45: 人族 | E45: 人族 | F45: 坦克 | G45: 精英 | H45: 10 | R45: 无 | S45: 无 | T45: 无 | U45: 100 | V45: 3700
A46: 50 | B46: 神枪手英雄 | C46: 112030 | D46: 人族 | E46: 人族 | F46: 射手 | G46: 精英 | H46: 10 | R46: 无 | S46: 无 | T46: 无 | U46: 100 | V46: 3700
A47: 51 | B47: 维修机英雄 | C47: 112040 | D47: 人族 | E47: 人族 | F47: 辅助 | G47: 精英 | H47: 10 | R47: 无 | S47: 无 | T47: 无 | U47: 100 | V47: 3700
A48: 52 | B48: 重炮蛛英雄 | C48: 113010 | D48: 人族 | E48: 人族 | F48: 射手 | G48: 英雄 | H48: 10 | R48: 无 | S48: 无 | T48: 无 | U48: 100 | V48: 5200
A49: 53 | B49: 军医英雄 | C49: 113020 | D49: 人族 | E49: 人族 | F49: 辅助 | G49: 英雄 | H49: 10 | R49: 无 | S49: 无 | T49: 无 | U49: 100 | V49: 5200
A50: 54 | B50: 热能兵英雄 | C50: 113030 | D50: 人族 | E50: 人族 | F50: 坦克 | G50: 英雄 | H50: 10 | R50: 无 | S50: 无 | T50: 无 | U50: 100 | V50: 5200
A51: 55 | B51: 圣光护卫英雄 | C51: 113040 | D51: 人族 | E51: 人族 | F51: 坦克 | G51: 英雄 | H51: 10 | R51: 无 | S51: 无 | T51: 无 | U51: 100 | V51: 4700
A52: 56 | B52: 斗武神英雄 | C52: 113050 | D52: 人族 | E52: 人族 | F52: 先锋 | G52: 英雄 | H52: 10 | R52: 无 | S52: 无 | T52: 无 | U52: 100 | V52: 5200
A53: 57 | B53: 铁巨神英雄 | C53: 113060 | D53: 人族 | E53: 人族 | F53: 能量 | G53: 英雄 | H53: 10 | R53: 无 | S53: 无 | T53: 无 | U53: 100 | V53: 4700
A54: 58 | B54: 幽灵特种兵英雄 | C54: 113070 | D54: 人族 | E54: 人族 | F54: 刺客 | G54: 英雄 | H54: 10 | R54: 无 | S54: 无 | T54: 无 | U54: 100 | V54: 4700
A55: 59 | B55: 爆裂特种兵英雄 | C55: 113080 | D55: 人族 | E55: 人族 | F55: 辅助 | G55: 英雄 | H55: 10 | R55: 无 | S55: 无 | T55: 无 | U55: 100 | V55: 5700
A56: 60 | B56: 假面游骑英雄 | C56: 113090 | D56: 人族 | E56: 人族 | F56: 射手 | G56: 英雄 | H56: 10 | R56: 无 | S56: 无 | T56: 无 | U56: 100 | V56: 5700
A57: 61 | B57: 角马英雄 | C57: 121010 | D57: 神族 | E57: 神族 | F57: 辅助 | G57: 精英 | H57: 10 | R57: 无 | S57: 无 | T57: 无 | U57: 100 | V57: 3700
A58: 62 | B58: 不灭金刚英雄 | C58: 121020 | D58: 神族 | E58: 神族 | F58: 坦克 | G58: 精英 | H58: 10 | R58: 无 | S58: 无 | T58: 无 | U58: 100 | V58: 3700
A59: 63 | B59: 重装护卫英雄 | C59: 121030 | D59: 神族 | E59: 神族 | F59: 先锋 | G59: 精英 | H59: 10 | R59: 无 | S59: 无 | T59: 无 | U59: 100 | V59: 3700
A60: 64 | B60: 电蛟英雄 | C60: 122010 | D60: 神族 | E60: 神族 | F60: 能量 | G60: 精英 | H60: 10 | R60: 无 | S60: 无 | T60: 无 | U60: 100 | V60: 3700
A61: 65 | B61: 修行者英雄 | C61: 122020 | D61: 神族 | E61: 神族 | F61: 先锋 | G61: 精英 | H61: 10 | R61: 无 | S61: 无 | T61: 无 | U61: 100 | V61: 3700
A62: 66 | B62: 刀奴英雄 | C62: 122030 | D62: 神族 | E62: 神族 | F62: 刺客 | G62: 精英 | H62: 10 | R62: 无 | S62: 无 | T62: 无 | U62: 100 | V62: 3700
A63: 67 | B63: 灵质真人英雄 | C63: 123010 | D63: 神族 | E63: 神族 | F63: 辅助 | G63: 英雄 | H63: 10 | R63: 无 | S63: 无 | T63: 无 | U63: 100 | V63: 5700
A64: 68 | B64: 雷震子英雄 | C64: 123020 | D64: 神族 | E64: 神族 | F64: 射手 | G64: 英雄 | H64: 10 | R64: 无 | S64: 无 | T64: 无 | U64: 100 | V64: 5200
A65: 69 | B65: 轮回金刚英雄 | C65: 123030 | D65: 神族 | E65: 神族 | F65: 坦克 | G65: 英雄 | H65: 10 | R65: 无 | S65: 无 | T65: 无 | U65: 100 | V65: 4700
A66: 70 | B66: 翔龙英雄 | C66: 123040 | D66: 神族 | E66: 神族 | F66: 能量 | G66: 英雄 | H66: 10 | R66: 无 | S66: 无 | T66: 无 | U66: 100 | V66: 4700
A67: 71 | B67: 剑奴英雄 | C67: 123050 | D67: 神族 | E67: 神族 | F67: 先锋 | G67: 英雄 | H67: 10 | R67: 无 | S67: 无 | T67: 无 | U67: 100 | V67: 5200
A68: 72 | B68: 天师英雄 | C68: 123060 | D68: 神族 | E68: 神族 | F68: 辅助 | G68: 英雄 | H68: 10 | R68: 无 | S68: 无 | T68: 无 | U68: 100 | V68: 4700
A69: 73 | B69: 十方侍卫英雄 | C69: 123070 | D69: 神族 | E69: 神族 | F69: 辅助 | G69: 英雄 | H69: 10 | R69: 无 | S69: 无 | T69: 无 | U69: 100 | V69: 4700
A70: 74 | B70: 御天侍卫英雄 | C70: 123080 | D70: 神族 | E70: 神族 | F70: 能量 | G70: 英雄 | H70: 10 | R70: 无 | S70: 无 | T70: 无 | U70: 100 | V70: 5200
A71: 75 | B71: 重装战士英雄 | C71: 123090 | D71: 神族 | E71: 神族 | F71: 坦克 | G71: 英雄 | H71: 10 | R71: 无 | S71: 无 | T71: 无 | U71: 100 | V71: 5200
A72: 76 | B72: 震雷之怒英雄 | C72: 123100 | D72: 神族 | E72: 神族 | F72: 能量 | G72: 英雄 | H72: 10 | R72: 无 | S72: 无 | T72: 无 | U72: 100 | V72: 5700
A73: 77 | B73: 宇宙求知者英雄 | C73: 123110 | D73: 神族 | E73: 神族 | F73: 辅助 | G73: 英雄 | H73: 10 | R73: 无 | S73: 无 | T73: 无 | U73: 100 | V73: 5700
A74: 78 | B74: 饿鬼鼠 | C74: 131010 | D74: 妖族 | E74: 妖族 | F74: 先锋 | G74: 精英 | H74: 10 | R74: 无 | S74: 无 | T74: 无 | U74: 100 | V74: 3700
A75: 79 | B75: 眼虫英雄 | C75: 131020 | D75: 妖族 | E75: 妖族 | F75: 能量 | G75: 精英 | H75: 10 | R75: 无 | S75: 无 | T75: 无 | U75: 100 | V75: 3700
A76: 80 | B76: 蝙蝠英雄 | C76: 131030 | D76: 妖族 | E76: 妖族 | F76: 射手 | G76: 精英 | H76: 10 | R76: 无 | S76: 无 | T76: 无 | U76: 100 | V76: 3700
A77: 81 | B77: 猛毒兽英雄 | C77: 132020 | D77: 妖族 | E77: 妖族 | F77: 坦克 | G77: 精英 | H77: 10 | R77: 无 | S77: 无 | T77: 无 | U77: 100 | V77: 3700
A78: 82 | B78: 蜘蛛英雄 | C78: 132030 | D78: 妖族 | E78: 妖族 | F78: 射手 | G78: 精英 | H78: 10 | R78: 无 | S78: 无 | T78: 无 | U78: 100 | V78: 3700
A79: 83 | B79: 狼武者英雄 | C79: 133010 | D79: 妖族 | E79: 妖族 | F79: 先锋 | G79: 英雄 | H79: 10 | R79: 无 | S79: 无 | T79: 无 | U79: 100 | V79: 4700
A80: 84 | B80: 神射虎英雄 | C80: 133020 | D80: 妖族 | E80: 妖族 | F80: 射手 | G80: 英雄 | H80: 10 | R80: 无 | S80: 无 | T80: 无 | U80: 100 | V80: 5200
A81: 85 | B81: 巨齿象英雄 | C81: 133030 | D81: 妖族 | E81: 妖族 | F81: 坦克 | G81: 英雄 | H81: 10 | R81: 无 | S81: 无 | T81: 无 | U81: 100 | V81: 4700
A82: 86 | B82: 利角遁兽英雄 | C82: 133040 | D82: 妖族 | E82: 妖族 | F82: 刺客 | G82: 英雄 | H82: 10 | R82: 无 | S82: 无 | T82: 无 | U82: 100 | V82: 4700
A83: 87 | B83: 禅师熊猫英雄 | C83: 133050 | D83: 妖族 | E83: 妖族 | F83: 辅助 | G83: 英雄 | H83: 10 | R83: 无 | S83: 无 | T83: 无 | U83: 100 | V83: 4700
A84: 88 | B84: 飞天蛤蟆英雄 | C84: 133060 | D84: 妖族 | E84: 妖族 | F84: 能量 | G84: 英雄 | H84: 10 | R84: 无 | S84: 无 | T84: 无 | U84: 100 | V84: 4700
A85: 89 | B85: 熊先锋英雄 | C85: 133070 | D85: 妖族 | E85: 妖族 | F85: 坦克 | G85: 英雄 | H85: 10 | R85: 无 | S85: 无 | T85: 无 | U85: 100 | V85: 5200
A86: 90 | B86: 血鹰英雄 | C86: 133080 | D86: 妖族 | E86: 妖族 | F86: 辅助 | G86: 英雄 | H86: 10 | R86: 无 | S86: 无 | T86: 无 | U86: 100 | V86: 5700
A87: 91 | B87: 夜翼妖王英雄 | C87: 133090 | D87: 妖族 | E87: 妖族 | F87: 能量 | G87: 英雄 | H87: 10 | R87: 无 | S87: 无 | T87: 无 | U87: 100 | V87: 5700
